lending/lending_fUSD_20251106
["ID","MTS","AMOUNT","RATE_DAILY","PERIOD"]
[393307672,1762446273138,-1814.63,0.00041,30]
[393307673,1762446273208,-5000.0,0.00041,120]
[393307674,1762446273282,-169.40800456,0.00041,120]
[393307675,1762446273359,-1720.4252236,0.00041,120]
[393307676,1762446273430,-268.67349644,0.00041,120]
[393307677,1762446273502,-999.0,0.00041095,120]
[393307678,1762446273571,-327.38,0.00041096,120]
[393307679,1762446273642,-50000.0,0.00041096,120]
[393307680,1762446273709,-17557.62297041,0.000411,120]
[393307681,1762446273779,-720.58,0.00041179,30]
[393307682,1762446273845,-720.58,0.00041179,30]
[393307683,1762446273912,-10000.39,0.000412,120]
[393307684,1762446273978,-666.49941242,0.00041268,30]
[393307685,1762446274044,-150.0,0.00041409,30]
[393307686,1762446274110,-150.0,0.00041409,30]
[393307687,1762446274178,-150.0,0.00041409,30]
[393307688,1762446274245,-301.26,0.00041409,30]
[393307689,1762446274315,-720.58,0.00041453,30]
[393307690,1762446274384,-720.58,0.00041453,30]
[393307691,1762446274454,-2000.0,0.00041465,120]
[393307692,1762446274524,-200.0,0.00041712,120]
[393307693,1762446274594,-5000.0,0.0004189,30]
[393307694,1762446274662,-312.0,0.00041895,90]
[393307695,1762446274731,-20000.0,0.000419,120]
[393307696,1762446274798,-500.0,0.00041996,60]
[393307697,1762446274866,-524.64516164,0.00042,120]
[393307698,1762446274932,-264.55950931,0.00042,120]
[393307699,1762446275252,-304.07753265,0.00042,120]
[393307700,1762446275322,-394.1840552,0.00042,30]
[393307701,1762446275391,-311.06569758,0.00042,30]
[393307702,1762446275457,-376.38607804,0.00042,30]
[393307703,1762446275527,-150.0,0.00042,120]
[393307704,1762446275593,-300.0,0.00042,120]
[393307705,1762446275657,-325.88700931,0.00042,30]
[393307706,1762446275727,-1500.0,0.00042,30]
[393307707,1762446275793,-251.29070407,0.00042,120]
[393307708,1762446275860,-427.10322003,0.00042,120]
[393307709,1762446275924,-100000.0,0.00042,90]
[393307710,1762446275991,-5000.99106357,0.00042,120]
[393307711,1762446276059,-1681.68,0.00042062,120]
[393307712,1762446276127,-419.06348219,0.000421,120]
[393307713,1762446276196,-152.99167176,0.00042121,120]
[393307714,1762446276264,-2000.0,0.00042153,120]
[393307715,1762446276335,-1851.11,0.00042231,30]
[393307716,1762446276404,-549.16,0.00042231,30]
[393307717,1762446276474,-176.91,0.00042231,30]
[393307718,1762446276543,-353.82,0.00042231,30]
[393307719,1762446276613,-169.40800456,0.000423,120]
[393307720,1762446276680,-1720.4252236,0.000423,120]
[393307721,1762446276746,-268.67349644,0.000423,120]
[393307722,1762446276810,-10765.09616236,0.000425,120]
[393307723,1762446276873,-11537.95500905,0.000425,120]
[393307724,1762446276929,-1000.0,0.00042544,60]
[393307725,1762446276991,-257.490718,0.000427,120]
[393307726,1762446277052,-5235.07965032,0.00042745,120]
[393307727,1762446277112,-161.48885594,0.00042799,120]
[393307728,1762446277170,-166.19981255,0.00042799,120]
[393307729,1762446277232,-172.1718932,0.00042799,120]
[393307730,1762446277295,-327.46650211,0.000428,30]
[393307731,1762446277356,-2000.0,0.00042842,120]
[393307732,1762446277417,-21148.0,0.000429,120]
[393307733,1762446277478,-212.0,0.0004295,30]
[393307734,1762446277541,-1305.14802251,0.00043,120]
[393307735,1762446277603,-150.0,0.00043,120]
[393307736,1762446277665,-150.0,0.00043,120]
[393307737,1762446277727,-158.40805627,0.00043,120]
[393307738,1762446277789,-967.70629741,0.00043,120]
[393307739,1762446277847,-45923.51236012,0.00043,120]
[393307740,1762446277904,-5000.0,0.00043,120]
[393307741,1762446277960,-273.83405214,0.00043,120]
[393307742,1762446278015,-203.76,0.00043014,120]
[393307743,1762446278073,-353.82,0.00043053,30]
[393307744,1762446278133,-500.0,0.00043092,60]
[393307745,1762446278195,-2650.47203356,0.000431,120]
[393307746,1762446278259,-519.70547653,0.0004314,120]
[393307747,1762446278326,-200.0,0.00043212,120]
[393307748,1762446278394,-521.859,0.0004322,30]
[393307749,1762446278462,-550.79581405,0.0004328,120]
[393307750,1762446278532,-231.83723108,0.00043302,120]
[393307751,1762446278601,-231.83723109,0.00043302,120]
[393307752,1762446278671,-1720.4252236,0.000435,120]
[393307753,1762446278736,-268.67349644,0.000435,120]
[393307754,1762446278801,-2000.0,0.0004353,120]
[393307755,1762446278866,-1000.0,0.0004364,60]
[393307756,1762446278933,-231.83723109,0.00043667,120]
[393307757,1762446279000,-231.76223639,0.000437,120]
[393307758,1762446279067,-533.70852385,0.000438,30]
[393307759,1762446279130,-385.6826747,0.000438,120]
[393307760,1762446279195,-524.29,0.000438,120]
[393307761,1762446279259,-500.0,0.00043835,120]
[393307762,1762446279327,-500.0,0.00043835,120]
[393307763,1762446279397,-500.0,0.00043835,120]
[393307764,1762446279469,-500.0,0.00043835,120]
[393307765,1762446279539,-500.0,0.00043835,120]
[393307766,1762446279604,-500.0,0.00043835,120]
[393307767,1762446279670,-500.0,0.00043835,120]
[393307768,1762446279737,-500.0,0.00043835,120]
[393307769,1762446279806,-500.0,0.00043835,120]
[393307770,1762446279876,-500.0,0.00043835,120]
[393307771,1762446279947,-500.0,0.00043835,120]
[393307772,1762446280020,-592.41798365,0.00043835,120]
[393307773,1762446280094,-999.0,0.00043835,120]
[393307774,1762446280164,-271.6825,0.00043835,120]
[393307775,1762446280237,-500.0,0.00043836,30]
[393307776,1762446280305,-830.66860689,0.000439,120]
[393307777,1762446280373,-1105.93602797,0.00043987,120]
[393307778,1762446280441,-317.0,0.0004399,90]
[393307779,1762446280512,-272.7141716,0.00043999,120]
[393307780,1762446280581,-503.90850815,0.00044,120]
[393307781,1762446280652,-150.0,0.00044,120]
[393307782,1762446280726,-200.0,0.00044,120]
[393307783,1762446280795,-1500.0,0.00044,30]
[393307784,1762446280862,-215.95,0.00044,30]
[393307785,1762446280929,-1246.21,0.00044,120]
[393307786,1762446280998,-248.37752394,0.00044,120]
[393307787,1762446281064,-1004.05986967,0.00044,120]
[393307788,1762446281130,-2970.99858137,0.00044,120]
[393307789,1762446281198,-5000.0,0.00044,120]
[393307790,1762446281265,-193555.35690994,0.00044,120]
[393307791,1762446281334,-152.0,0.00044,120]
[393307792,1762446281401,-151.0,0.00044,120]
[393307793,1762446281469,-374.285652,0.00044,57]
[393307794,1762446281537,-202.47,0.00044,30]
[393307795,1762446281601,-500.0,0.00044188,60]
[393307796,1762446281667,-2000.0,0.00044218,120]
[393307797,1762446281734,-158.29325622,0.0004425,120]
[393307798,1762446281801,-33785.5553685,0.000444,120]
[393307799,1762446281869,-20000.000001,0.00044444,120]
[393307800,1762446281936,-313.7925201,0.000445,120]
[393307801,1762446282002,-3485.4851149,0.000445,120]
[393307802,1762446282248,-44136.92912111,0.000445,120]
[393307803,1762446282321,-199.116877,0.00044712,120]
[393307804,1762446282393,-1000.0,0.00044736,60]
[393307805,1762446282461,-543.365,0.00044794,120]
[393307806,1762446282529,-336.07010852,0.0004489,120]
[393307807,1762446282595,-50000.0,0.000449,120]
[393307808,1762446282660,-3626.17,0.000449,120]
[393307809,1762446282725,-11683.54,0.000449,120]
[393307810,1762446282788,-368.31030618,0.000449,30]
[393307811,1762446282852,-152.0,0.000449,120]
[393307812,1762446282915,-2000.0,0.00044906,120]
[393307813,1762446282979,-212.0,0.0004496,30]
[393307814,1762446283045,-2000.0,0.00044999,30]
[393307815,1762446283111,-1000000.0,0.00045,120]
[393307816,1762446283180,-1000000.0,0.00045,120]
[393307817,1762446283247,-709.90575495,0.00045,120]
[393307818,1762446283315,-31364.99064581,0.00045,120]
[393307819,1762446283383,-2818.99176998,0.00045,120]
[393307820,1762446283454,-150.0,0.00045,120]
[393307821,1762446283527,-156.8,0.00045,85]
[393307822,1762446283595,-13284.0,0.00045,120]
[393307823,1762446283663,-9947.19949863,0.00045,120]
[393307824,1762446283729,-300.0,0.00045,60]
[393307825,1762446283798,-150.0,0.00045,60]
[393307826,1762446283865,-50000.0,0.00045,31]
[393307827,1762446283932,-917.7804,0.00045,120]
[393307828,1762446283997,-150.0,0.00045,120]
[393307829,1762446284063,-73442.63136227,0.00045,60]
[393307830,1762446284129,-150.0,0.00045,30]
[393307831,1762446284199,-170.74905547,0.00045,120]
[393307832,1762446284269,-150.84135084,0.00045,30]
[393307833,1762446284341,-156.55604877,0.00045,30]
[393307834,1762446284408,-19467.53,0.00045,120]
[393307835,1762446284479,-1103.4877,0.00045,120]
[393307836,1762446284549,-5245.0,0.00045,120]
[393307837,1762446284618,-228.42,0.00045,120]
[393307838,1762446284684,-157.3,0.00045,120]
[393307839,1762446284751,-1922.69,0.00045,120]
[393307840,1762446284819,-336.28,0.00045,120]
[393307841,1762446284885,-5526.0,0.00045,120]
[393307842,1762446284953,-1283.02,0.00045,120]
[393307843,1762446285020,-378.72,0.00045,120]
[393307844,1762446285081,-203.99,0.00045,120]
[393307845,1762446285150,-1000000.0,0.00045,120]
[393307846,1762446285218,-104035.7585707,0.00045,120]
[393307847,1762446317992,-216.76597331,0.00038515,30]
[393307848,1762446318082,-2000.0,0.0004,120]
[393307849,1762446318167,-691.29,0.0004,30]
[393307850,1762446318258,-700.1,0.0004,30]
[393307851,1762446318355,-266.79050506,0.00041058,104]
[393307852,1762446318449,-263.1925,0.00043835,120]
[393307853,1762446318546,-198.83063622,0.0004475,120]
[393307854,1762446318637,-379.58206521,0.0004475,120]
[393307855,1762446318723,-151.82046413,0.0004475,120]
[393307856,1762446318807,-526.385,0.00044794,120]
[393307857,1762446318894,-895964.2414293,0.00045,120]
[393307858,1762446318979,-1000000.0,0.00045,120]
[393307859,1762446319065,-1000000.0,0.00045,120]
[393307860,1762446319153,-1000000.0,0.00045,120]
[393307861,1762446319236,-1000000.0,0.00045,120]
[393307862,1762446319325,-98641.00142677,0.00045,120]
[393307863,1762446323768,-520.1197786,0.0004475,120]
[393307864,1762446323856,-901358.99857323,0.00045,120]
[393307865,1762446323940,-1000000.0,0.00045,120]
[393307866,1762446324026,-1000000.0,0.00045,120]
[393307867,1762446324109,-1000000.0,0.00045,120]
[393307868,1762446324194,-1000000.0,0.00045,120]
[393307869,1762446324282,-98120.88164817,0.00045,120]
[393307870,1762446327511,-1000.0,0.00043356,60]
[393307871,1762446327598,-901879.11835183,0.00045,120]
[393307872,1762446327680,-1000000.0,0.00045,120]
[393307873,1762446327761,-1000000.0,0.00045,120]
[393307874,1762446327843,-1000000.0,0.00045,120]
[393307875,1762446327927,-1000000.0,0.00045,120]
[393307876,1762446328010,-97120.88164817,0.00045,120]
[393307877,1762446331019,-312.495954,0.00031,31]
[393307878,1762446331177,-152.71,0.000387,60]
[393307879,1762446331264,-1000.0,0.00043904,60]
[393307880,1762446331347,-1000.0,0.00044452,60]
[393307881,1762446331431,-1000.0,0.00045,60]
[393307882,1762446331512,-902879.11835183,0.00045,120]
[393307883,1762446331592,-1000000.0,0.00045,120]
[393307884,1762446331677,-1000000.0,0.00045,120]
[393307885,1762446331760,-1000000.0,0.00045,120]
[393307886,1762446331842,-1000000.0,0.00045,120]
[393307887,1762446331926,-93655.67569417,0.00045,120]
[393307888,1762446334311,-312.495954,0.00031,31]
[393307889,1762446334471,-2500.0,0.00043354,30]
[393307890,1762446334554,-1222.75,0.00043964,30]
[393307891,1762446334635,-2000.0,0.00044999,30]
[393307892,1762446334718,-906344.32430583,0.00045,120]
[393307893,1762446334798,-1000000.0,0.00045,120]
[393307894,1762446334879,-1000000.0,0.00045,120]
[393307895,1762446334959,-1000000.0,0.00045,120]
[393307896,1762446335039,-1000000.0,0.00045,120]
[393307897,1762446335120,-87620.42974017,0.00045,120]
[393307898,1762446338000,-312.495954,0.00031,31]
[393307899,1762446338084,-312.495954,0.00031,31]
[393307900,1762446338258,-912379.57025983,0.00045,120]
[393307901,1762446338343,-1000000.0,0.00045,120]
[393307902,1762446338427,-1000000.0,0.00045,120]
[393307903,1762446338509,-818410.0,0.00045,120]
[393307904,1762446338590,-150.68,0.00045,30]
[393307905,1762446338670,-100000.0,0.00045,120]
[393307906,1762446338750,-166.17923947,0.00045,30]
[393307907,1762446338836,-153.0,0.00045,30]
[393307908,1762446338915,-153.0,0.00045,30]
[393307909,1762446338995,-154.49758491,0.00045,30]
[393307910,1762446339074,-153.0,0.00045,30]
[393307911,1762446339152,-153.0,0.00045,30]
[393307912,1762446339251,-153.0,0.00045,30]
[393307913,1762446339339,-153.0,0.00045,30]
[393307914,1762446339422,-153.0,0.00045,30]
[393307915,1762446339507,-153.0,0.00045,30]
[393307916,1762446339590,-153.0,0.00045,30]
[393307917,1762446339672,-151.0,0.000453,120]
[393307918,1762446339752,-458.15,0.000453,90]
[393307919,1762446339833,-50000.0,0.000455,31]
[393307920,1762446339913,-1000.0,0.00045548,60]
[393307921,1762446339993,-2000.0,0.00045595,120]
[393307922,1762446340073,-481.53383034,0.000457,120]
[393307923,1762446340152,-789.5775,0.00045753,120]
[393307924,1762446340233,-152.0,0.000458,120]
[393307925,1762446340316,-749.24803639,0.000459,120]
[393307926,1762446340400,-322.5710103,0.00046,120]
[393307927,1762446340484,-485.11457665,0.00046,120]
[393307928,1762446340566,-204.1416302,0.00046,30]
[393307929,1762446340647,-3212.16455582,0.00046,30]
[393307930,1762446340732,-1000000.0,0.00046,120]
[393307931,1762446340812,-300.0,0.00046,120]
[393307932,1762446340895,-150.0,0.00046,120]
[393307933,1762446340974,-1000.0,0.00046,120]
[393307934,1762446341055,-300.0,0.00046,120]
[393307935,1762446341134,-1750.0,0.00046,30]
[393307936,1762446341215,-50000.0,0.00046,32]
[393307937,1762446341297,-53231.57986809,0.00046,120]
[393307938,1762446346353,-1647.6,0.00041,30]
[393307939,1762446346438,-698.06,0.00044995,30]
[393307940,1762446346521,-153.0,0.00045,30]
[393307941,1762446346598,-153.0,0.00045,30]
[393307942,1762446346675,-153.0,0.00045,30]
[393307943,1762446346750,-946768.42013191,0.00046,120]
[393307944,1762446346829,-1000000.0,0.00046,120]
[393307945,1762446346906,-1000000.0,0.00046,120]
[393307946,1762446346981,-150.0,0.00046,30]
[393307947,1762446347059,-682489.0,0.00046,120]
[393307948,1762446347134,-2355.4795394,0.00046,120]
[393307949,1762446347211,-560.71593727,0.00046,120]
[393307950,1762446347294,-188.81236354,0.00046,120]
[393307951,1762446347742,-669.51,0.00046217,30]
[393307952,1762446347818,-1205.44,0.00046217,30]
[393307953,1762446347895,-169.04,0.00046217,30]
[393307954,1762446347969,-176.91,0.00046217,30]
[393307955,1762446348049,-698.56,0.00046217,30]
[393307956,1762446348130,-1092.6,0.00046217,30]
[393307957,1762446348210,-176.91,0.00046218,30]
[393307958,1762446348295,-1000000.0,0.0004625,120]
[393307959,1762446348377,-2000.0,0.00046283,120]
[393307960,1762446348456,-1097.9,0.00046373,30]
[393307961,1762446348536,-300.98,0.00046373,30]
[393307962,1762446348615,-300.0,0.00046373,30]
[393307963,1762446348693,-169.04,0.00046373,30]
[393307964,1762446348769,-1205.44,0.00046373,30]
[393307965,1762446348845,-151.27,0.00046373,30]
[393307966,1762446348921,-954.24,0.00046373,30]
[393307967,1762446348995,-831.42,0.00046373,30]
[393307968,1762446349071,-300.0,0.00046373,30]
[393307969,1762446349145,-318.81,0.00046373,30]
[393307970,1762446349220,-698.56,0.00046373,30]
[393307971,1762446349298,-169.04,0.00046373,30]
[393307972,1762446349380,-301.65,0.00046373,30]
[393307973,1762446349457,-698.56,0.00046373,30]
[393307974,1762446349533,-169.04,0.00046373,30]
[393307975,1762446349608,-1205.44,0.00046373,30]
[393307976,1762446349685,-698.56,0.00046373,30]
[393307977,1762446349761,-698.56,0.00046373,30]
[393307978,1762446349837,-1205.44,0.00046373,30]
[393307979,1762446349915,-1205.44,0.00046373,30]
[393307980,1762446349990,-151.38,0.00046373,30]
[393307981,1762446350071,-150.0,0.00046373,30]
[393307982,1762446350144,-477.12,0.00046373,30]
[393307983,1762446350222,-415.71,0.00046373,30]
[393307984,1762446350299,-549.16,0.00046373,30]
[393307985,1762446350376,-549.16,0.00046373,30]
[393307986,1762446350453,-415.71,0.00046373,30]
[393307987,1762446350529,-549.16,0.00046373,30]
[393307988,1762446350604,-150.0,0.00046373,30]
[393307989,1762446350680,-1205.44,0.00046373,30]
[393307990,1762446350769,-169.04,0.00046373,30]
[393307991,1762446350843,-176.91,0.00046373,30]
[393307992,1762446350918,-150.0,0.00046373,30]
[393307993,1762446350995,-176.91,0.00046373,30]
[393307994,1762446351070,-169.04,0.00046373,30]
[393307995,1762446351148,-698.56,0.00046373,30]
[393307996,1762446351224,-1205.44,0.00046373,30]
[393307997,1762446351302,-150.0,0.00046373,30]
[393307998,1762446351378,-698.56,0.00046373,30]
[393307999,1762446351452,-176.91,0.00046373,30]
[393308000,1762446351529,-169.04,0.00046373,30]
[393308001,1762446351603,-1205.44,0.00046373,30]
[393308002,1762446351679,-698.56,0.00046373,30]
[393308003,1762446351755,-196.94156475,0.000464,120]
[393308004,1762446351835,-335160.36046313,0.000465,120]
[393308005,1762446385033,-154.41,0.000311,30]
[393308006,1762446385112,-154.41,0.000327,30]
[393308007,1762446385203,-154.41,0.000339,30]
[393308008,1762446385288,-154.41,0.000352,30]
[393308009,1762446385421,-154.41,0.00042,30]
[393308010,1762446385494,-52094.28879588,0.000425,120]
[393308011,1762446385570,-1181.66204575,0.00043562,120]
[393308012,1762446385649,-55878.0048603,0.00046,120]
[393308013,1762446385731,-664839.63953687,0.000465,120]
[393308014,1762446385807,-1000000.0,0.000465,120]
[393308015,1762446385885,-1000000.0,0.000465,120]
[393308016,1762446385961,-1000000.0,0.000465,120]
[393308017,1762446386038,-1000000.0,0.000465,120]
[393308018,1762446386111,-50000.0,0.000465,32]
[393308019,1762446386186,-175234.3547612,0.000465,120]
[393308020,1762446390737,-824765.6452388,0.000465,120]
[393308021,1762446390809,-151.0,0.000466,120]
[393308022,1762446390882,-1000.0,0.00046644,60]
[393308023,1762446390955,-161.9503607,0.0004668,90]
[393308024,1762446391028,-1052.77,0.00046712,120]
[393308025,1762446391102,-1140.0,0.00046745,30]
[393308026,1762446391176,-152.0,0.000468,120]
[393308027,1762446391250,-312.0,0.00046922,90]
[393308028,1762446391324,-2000.0,0.00046971,120]
[393308029,1762446391399,-212.0,0.0004698,30]
[393308030,1762446391472,-445.0,0.00046986,120]
[393308031,1762446391551,-550000.0,0.00047,120]
[393308032,1762446391622,-1000000.0,0.00047,120]
[393308033,1762446391696,-500000.0,0.00047,120]
[393308034,1762446391769,-1000000.0,0.00047,120]
[393308035,1762446391844,-1000000.0,0.00047,120]
[393308036,1762446391921,-118607.6344005,0.00047,120]
[393308037,1762446394938,-571.42911509,0.00038515,31]
[393308038,1762446395041,-881392.3655995,0.00047,120]
[393308039,1762446395117,-1000000.0,0.00047,120]
[393308040,1762446395190,-817.56,0.00047,60]
[393308041,1762446395268,-150.0,0.00047,120]
[393308042,1762446395635,-50000.0,0.00047,33]
[393308043,1762446395707,-1144.0,0.00047,120]
[393308044,1762446395779,-150.0,0.00047,30]
[393308045,1762446395850,-5245.0,0.00047,120]
[393308046,1762446395924,-1000000.0,0.00047,120]
[393308047,1762446395997,-271.94501294,0.00047,120]
[393308048,1762446396071,-224.98931545,0.00047,120]
[393308049,1762446396147,-1140.0,0.00047227,30]
[393308050,1762446396229,-1250000.0,0.0004725,120]
[393308051,1762446396308,-808892.71095702,0.0004725,120]
[393308052,1762446402482,-151.0,0.00032,31]
[393308053,1762446402639,-1899.17,0.00046218,30]
[393308054,1762446402712,-191107.28904298,0.0004725,120]
[393308055,1762446402785,-155.43020358,0.00047308,120]
[393308056,1762446402863,-1000000.0,0.000475,120]
[393308057,1762446402935,-1000000.0,0.000475,120]
[393308058,1762446403011,-1000000.0,0.000475,120]
[393308059,1762446403093,-1000000.0,0.000475,120]
[393308060,1762446403175,-806687.11075344,0.000475,120]
[393308061,1762446427534,-151.0,0.00032,31]
[393308062,1762446427610,-151.0,0.00032,31]
[393308063,1762446427732,-254.10886186,0.00037383,30]
[393308064,1762446427848,-10074.0,0.00040561,117]
[393308065,1762446427953,-176.91,0.00046218,30]
[393308066,1762446428033,-743.28417021,0.00046373,30]
[393308067,1762446428112,-700.11,0.0004725,30]
[393308068,1762446428193,-193312.88924656,0.000475,120]
[393308069,1762446428273,-50000.0,0.000475,33]
[393308070,1762446428352,-1000000.0,0.000475,120]
[393308071,1762446428436,-2000.0,0.00047659,120]
[393308072,1762446428518,-1315.9625,0.00047671,120]
[393308073,1762446428605,-152.0,0.000477,120]
[393308074,1762446428687,-1140.0,0.00047709,30]
[393308075,1762446428771,-1000.0,0.0004774,60]
[393308076,1762446428847,-1103.42039486,0.0004788,100]
[393308077,1762446428926,-38799.99999901,0.0004799,30]
[393308078,1762446429003,-1000000.0,0.00048,120]
[393308079,1762446429079,-1000000.0,0.00048,120]
[393308080,1762446429155,-1000000.0,0.00048,120]
[393308081,1762446429233,-482.33961191,0.00048,120]
[393308082,1762446429317,-698442.97521559,0.00048,120]
[393308083,1762446433642,-689.41,0.00040312,30]
[393308084,1762446433723,-1000000.0,0.00045,120]
[393308085,1762446433805,-301557.02478441,0.00048,120]
[393308086,1762446433880,-176.91412612,0.00048,120]
[393308087,1762446433954,-2551.50715475,0.00048,120]
[393308088,1762446434042,-2574.1188099,0.00048,120]
[393308089,1762446434118,-432.63837431,0.00048,120]
[393308090,1762446434196,-1000000.0,0.00048,120]
[393308091,1762446434273,-1000000.0,0.00048,120]
[393308092,1762446434350,-1000000.0,0.00048,120]
[393308093,1762446434429,-692018.38675051,0.00048,120]
[393308094,1762446439553,-300.0,0.0004725,120]
[393308095,1762446439633,-307981.61324949,0.00048,120]
[393308096,1762446439709,-1000000.0,0.00048,120]
[393308097,1762446439784,-202.47,0.00048,120]
[393308098,1762446439862,-150.0,0.00048,120]
[393308099,1762446439939,-250.0,0.00048,120]
[393308100,1762446440017,-200.0,0.00048,120]
[393308101,1762446440095,-1900.0,0.00048,30]
[393308102,1762446440171,-50000.0,0.00048,34]
[393308103,1762446440247,-150.0,0.00048,30]
[393308104,1762446440329,-300.0,0.00048,120]
[393308105,1762446440404,-1214.0,0.00048,120]
[393308106,1762446440483,-7000.0,0.00048,120]
[393308107,1762446440556,-18542.0,0.00048,120]
[393308108,1762446440629,-800.0,0.00048,120]
[393308109,1762446440704,-151.0,0.00048,120]
[393308110,1762446440778,-560.71593727,0.00048,120]
[393308111,1762446440854,-150.0,0.00048,120]
[393308112,1762446440928,-420.0,0.00048,120]
[393308113,1762446441004,-300.0,0.00048,120]
[393308114,1762446441079,-1140.0,0.00048191,30]
[393308115,1762446441156,-1000000.0,0.0004825,120]
[393308116,1762446441228,-680.0,0.000483,120]
[393308117,1762446441304,-2000.0,0.00048348,120]
[393308118,1762446441380,-1000000.0,0.000485,120]
[393308119,1762446441460,-1000000.0,0.000485,120]
[393308120,1762446441537,-605608.20081324,0.000485,120]
[393308121,1762446446184,-346.343575,0.00032,31]
[393308122,1762446446263,-346.343575,0.00032,31]
[393308123,1762446446416,-346.343575,0.00038515,120]
[393308124,1762446446522,-1000000.0,0.00045,120]
[393308125,1762446446603,-600.0,0.00045309,60]
[393308126,1762446446677,-500.0,0.00045583,60]
[393308127,1762446446751,-600.0,0.00045857,60]
[393308128,1762446446839,-600.0,0.00046405,60]
[393308129,1762446446914,-500.0,0.00046679,60]
[393308130,1762446446989,-600.0,0.00046953,60]
[393308131,1762446447061,-600.0,0.00047501,60]
[393308132,1762446447135,-500.0,0.00047775,60]
[393308133,1762446447210,-394391.79918676,0.000485,120]
[393308134,1762446447286,-1000000.0,0.000485,120]
[393308135,1762446447360,-1000000.0,0.000485,120]
[393308136,1762446447435,-1000000.0,0.000485,120]
[393308137,1762446447895,-50000.0,0.000485,34]
[393308138,1762446447969,-550069.17008824,0.000485,120]
[393308139,1762446451682,-346.343575,0.00032,31]
[393308140,1762446451753,-346.343575,0.00032,31]
[393308141,1762446451870,-150.0,0.00037383,30]
[393308142,1762446451958,-285.71455755,0.00038515,31]
[393308143,1762446452030,-346.343575,0.00038515,120]
[393308144,1762446452102,-346.343575,0.00038515,120]
[393308145,1762446452176,-346.343571,0.00038515,120]
[393308146,1762446452283,-600.0,0.00048049,60]
[393308147,1762446452358,-449930.82991176,0.000485,120]
[393308148,1762446452433,-600.0,0.00048597,60]
[393308149,1762446452511,-152.0,0.000486,120]
[393308150,1762446452588,-2000.0,0.0004863,65]
[393308151,1762446452659,-1579.155,0.0004863,120]
[393308152,1762446452732,-1140.0,0.00048673,30]
[393308153,1762446452803,-153.59972457,0.000488,120]
[393308154,1762446452875,-35364.08648965,0.000488,120]
[393308155,1762446452945,-349.99,0.000488,120]
[393308156,1762446453016,-1000.0,0.00048836,60]
[393308157,1762446453092,-2000.0,0.0004886,65]
[393308158,1762446453170,-500.0,0.00048871,60]
[393308159,1762446453247,-445.0,0.00048986,120]
[393308160,1762446453325,-212.0,0.0004899,30]
[393308161,1762446453407,-1000000.0,0.00049,120]
[393308162,1762446453483,-354.59067039,0.00049,120]
[393308163,1762446453559,-1000000.0,0.00049,120]
[393308164,1762446453633,-400.3206197,0.00049,30]
[393308165,1762446453707,-1000000.0,0.00049,120]
[393308166,1762446453780,-1000000.0,0.00049,120]
[393308167,1762446453853,-501050.99515538,0.00049,120]
[393308168,1762446457415,-827.165246,0.00032,31]
[393308169,1762446457492,-827.165246,0.00032,31]
[393308170,1762446457571,-827.165246,0.00032,31]
[393308171,1762446457708,-1649.650299,0.00038356,120]